Workbook

Sheet PAGO
B6: DATOS ALUMNO/A
B8: Documento
B9: de identidad: | K9: Número:
B11: Apellido1: | K11: Apellido 2: | T11: Nombre:
B14: Télefono fijo: | H14: Télefono móvil: | O14: e-mail
B17: CURSO EN EL QUE SE MATRICULA | P17: AÑO ACADÉMICO
B18: NIVEL | K18: TÍTULO:
B19: C.F. GRADO SUPERIOR | K19: Integración Social
B21: MODULOS EN LOS QUE SE MATRICULA:
A23: Curso | C23: Módulo | O23: Horas | P23: Matricular | R23: Precio | T23: Convalidar | W23: Precio Conval.
B25: 1º | C25: 0337 Contexto de la intervención social | O25: 102 | R25: =O25*2.4 -> 244.8 | W25: 10
B26: 1º | C26: 0338 Inserción sociolaboral | O26: 170 | R26: 408 | W26: 10
B27: 1º | C27: 0339 Atención a las unidades de convivencia | O27: 170 | R27: 408 | W27: 10
B28: 1º | C28: 0342 Promoción de la autonomía personal | O28: 204 | R28: =O28*2.4 -> 489.6 | W28: 10
B29: 1º | C29: 0344 Metodología de la intervención social | O29: 136 | R29: =O29*2.4 -> 326.4 | W29: 10
B30: 1º | C30: 1709 Itinerario personal para la empleabilidad I | O30: 102 | R30: =O30*2.4 -> 244.8 | W30: 10
B31: 1º | C31: 0179 Inglés profesional | O31: 68 | R31: =O31*2.4 -> 163.2 | W31: 10
B32: 1º | C32: Módulo optativo I | O32: 34 | R32: =O32*2.4 -> 81.6 | W32: 10
B33: 2º | C33: 0340 Mediación comunitaria | O33: 132 | R33: =O33*2.4 -> 316.8 | W33: 10
B34: 2º | C34: 0341 Apoyo a la intervención educativa | O34: 165 | R34: 396 | W34: 10
B35: 2º | C35: 0343 Sistemas alternativos de comunicación | O35: 165 | R35: 396 | W35: 10
B36: 2º | C36: 0020 Primeros auxilios | O36: 66 | R36: 158.4 | W36: 10
B37: 2º | C37: 0017 Habilidades sociales | O37: 231 | R37: 554.4 | W37: 10
B38: 2º | C38: 1710 Itinerario personal para la empleabilidad II | O38: 68 | R38: 163.2 | W38: 10
B39: 2º | C39: 1665 Digitalización aplicada a los sectores prod. | O39: 34 | R39: =O39*2.4 -> 81.6 | W39: 10
B40: 2º | C40: 1708 Sostenibilidad aplicada al sistema product. | O40: 34 | R40: 81.6 | W40: 10
B41: 2º | C41: 0345 Proyecto de integración social | O41: 65 | R41: =O41*2.4 -> 156 | W41: 10
B42: 2º | C42: Módulo optativo II | O42: 54 | R42: =O42*2.4 -> 129.6 | W42: 10
G44: TOTAL horas e importe | O44: =SUMIF(P25:Q41,"si",O25:O41) -> 0 | P44: h. | R44: =SUMIF(P25:Q41,"si",R25:S41)-SUMIF(T25:U42,"si",R25:S41)+SUMIF(T25:U42,"si",W25:X42) -> 0
B46: FORMA DE PAGO:
B47: El pago inicial se podrá realizar mediante transferencia bancaria o ingreso en efectivo a través de los cajeros automáticos disponibles en la oficinas del Banco Santander, a favor del siguiente número de cuenta: ES05 0049 3319 5928 1405 0252
B50: OBLIGATORIAMENTE DEBERÁ INDICARSE EN EL CONCEPTO EL NOMBRE DEL ALUMNO/A SEGUIDO DE FP-ONLINE
V52: =IF(AND(DATOS!A35=TRUE,AND(O44<>986,O44<>1014)),DATOS!B35-H55,"") -> 
N53: 8% DTO. PARA MATRICULA CURSO COMPLETO | V53: =IF(DATOS!A35=TRUE,IF(OR(O44=986,O44=1014),R44-(R44*8%)-H55,""),"") -> 
V54: =IF(AND(DATOS!A36=TRUE,AND(O44<>986,O44<>1014)),DATOS!B36,"") -> 
C55: Total a pagar | H55: =SUMIF(DATOS!A31:A32,"verdadero",DATOS!B31:B32) -> 0 | N55: 4% DTO PARA MATRICULA CURSO COMPLETO | V55: =IF(DATOS!A36=TRUE,IF(OR(O44=986,O44=1014),(R44-(R44*4%)-H55)/3,""),"") -> 
M56: SOLO PARA IMPORTES SUPERIORES A 1.000€
V57: =IF(AND(DATOS!A37=TRUE,AND(O44<>986,O44<>1014),R44>=1000),DATOS!B37,"") -> 
N58: 3% dto para matricula curso completo | V58: =IF(DATOS!A37=TRUE,IF(OR(O44=986,O44=1014),(R44-(R44*3%)-H55)/9,""),"") -> 
B60: DATOS PARA DOMICILIACIÓN BANCARIA
B62: Entidad Bancaria
B64: Código IBAN | F64: Entidad | J64: sucursal | N64: dc | P64: código cuenta
B65: E | C65: S | D65: =IF(ISBLANK($V$65),"",MID($C$71,1,1)) ->  | E65: =IF(ISBLANK($V$65),"",MID($C$71,2,1)) ->  | N65: =IF($N$68=10,LEFT($N$68,1),IF($N$68=11,0,$N$68)) ->  | O65: =IF($O$68=10,LEFT($O$68,1),IF($O$68=11,0,$O$68)) -> 
N66: =SUM(F65*4,G65*8,H65*5,I65*10) -> 0 | O66: =SUM(P65*1,Q65*2,R65*4,S65*8,T65*5,U65*10,V65*9,W65*7,X65*3,Y65*6) -> 0
N67: =SUM(J65*9,K65*7,L65*3,M65*6) -> 0
E68: =CONCATENATE(B65,C65,D65,E65,E69) -> ES | N68: =IF(ISBLANK($H$65),"",11-MOD(SUM($N$66,$N$67),11)) ->  | O68: =IF(ISBLANK($U$65),"",11-MOD($O$66,11)) -> 
E69: =CONCATENATE(F65,G65,H65,I65,J65,K65,L65,M65,N65,O65,P65,Q65,R65,S65,T65,U65,V65,W65,X65,Y65) -> 
C71: =RIGHT(0&98-MOD(MOD(MOD(MOD(MID(E69,1,8),97)&MID(E69,9,8),97)&MID(E69&142800,17,8),97)&MID(E69&142800,25,2),97),2) ->  | E71: =MOD(MOD(MOD(MOD(MID(E69,1,8),97)&MID(E69,9,8),97)&MID(E69&142800,17,8),97)&MID(E69&142821,25,2),97) -> 
P77: Valladolid a
R78: Firma del Titular

Sheet PAGO (2)
B7: DATOS ALUMNO/A
B9: Apellido1: | K9: Apellido 2: | T9: Nombre:
B10: =IF(ISBLANK(PAGO!$B$12),"",PAGO!$B$12) ->  | K10: =IF(ISBLANK(PAGO!$K$12),"",PAGO!$K$12) ->  | T10: =IF(ISBLANK(PAGO!$T$12),"",PAGO!$T$12) -> 
B11: CURSO EN EL QUE SE MATRICULA
B12: NIVEL | H12: CURSO: | K12: TÍTULO:
B13: =IF(ISBLANK(PAGO!$B$19),"",PAGO!$B$19) -> C.F. GRADO SUPERIOR | H13: =IF(ISBLANK(PAGO!H19),"",PAGO!H19) ->  | K13: =IF(ISBLANK(PAGO!K19),"",PAGO!K19) -> Integración Social
B15: CUOTA POR ENSEÑANZA REGLADA
C21: Total a pagar: | G21: =IF(PAGO!$B$19="C.F. GRADO MEDIO",SUMIF(DATOS!$G$3:$G$4,"verdadero",DATOS!$H$3:$H$4),"") -> 
N24: Total a pagar: | R24: =IF(OR(PAGO!$B$19="BACHILLER",PAGO!$B$19="C.F. GRADO SUPERIOR"),SUMIF(DATOS!$G$6:$G$10,"verdadero",DATOS!$H$6:$H$10),"") -> 162.12
N28: =SUM(#REF!*4,#REF!*8,#REF!*5,#REF!*10) ->  | O28: =SUM(#REF!*1,#REF!*2,#REF!*4,#REF!*8,#REF!*5,#REF!*10,#REF!*9,#REF!*7,#REF!*3,#REF!*6) -> 
N29: =SUM(#REF!*9,#REF!*7,#REF!*3,#REF!*6) -> 
N30: =IF(ISBLANK(#REF!),"",11-MOD(SUM(N28,N29),11)) ->  | O30: =IF(ISBLANK(#REF!),"",11-MOD(O28,11)) -> 
E31: =CONCATENATE(#REF!,#REF!,#REF!,#REF!,#REF!,#REF!,#REF!,#REF!,#REF!,#REF!,#REF!,#REF!,#REF!,#REF!,#REF!,#REF!,#REF!,#REF!,#REF!,#REF!) -> 
C33: =RIGHT(0&98-MOD(MOD(MOD(MOD(MID(E31,1,8),97)&MID(E31,9,8),97)&MID(E31&142800,17,8),97)&MID(E31&142800,25,2),97),2) ->  | E33: =MOD(MOD(MOD(MOD(MID(E31,1,8),97)&MID(E31,9,8),97)&MID(E31&142800,17,8),97)&MID(E31&142821,25,2),97) -> 
B34: FORMA DE PAGO:
B35: El pago se realizará por transferencia bancaría , en el siguiente número de cuenta
E36: Banco Popular ES21 0075 0549 19 0600035384.
B37: OBLIGATORIAMENTE DEBERÁ INDICARSE EN EL CONCEPTO EL NOMBRE DEL ALUMNO/A
P38: Valladolid a | S38: =TODAY() -> 2024-06-20
R39: Firma del Titular
Q50: Ejemplar para la Entidad Bancaria

Sheet DATOS
A1: NIVEL | B1: AÑO | C1: TITULO | F1: Celdas vinculadas
A2: C.F. GRADO MEDIO | B2: 1º | C2: Atención a Personas en Situación de Dependencia | F2: Nivel | G2: 1
A3: C.F. GRADO SUPERIOR | B3: 2º | C3: Gestión Administrativa | F3: FPB Y GM | G3: TRUE | H3: 1.12
C4: Farmacia y Parafarmacia | G4: FALSE | H4: 20
C5: Sistemas Microinformáticos y Redes | F5: G.S. Y BACHILLER
C6: Administración y Finanzas | F6: <28 | G6: TRUE | H6: 24.12
C7: Desarrollo Aplicaciones Multiplataforma | F7: >28 | G7: FALSE | H7: 23
C8: Educación Infantil | F8: 1trimestre | G8: TRUE | H8: 69
A9: DOCUMENTO | C9: Gestión de Ventas y Espacios Comerciales | F9: 2trimestre | G9: TRUE | H9: 69
A10: D.N.I. | C10: Guía, Información y Asistencia Turística | F10: 3trimestre | G10: FALSE | H10: 69
A11: N.I.E. | C11: Integración Social
C12: Laboratorio Clínico y Biomédico
A15: SI
A17: 2022/2023
A18: 2023/2024
A19: 2024/2025
A20: 2025/2026
A21: 2026/2027
A22: 2027/2028
A31: FALSE | B31: 1.12
A32: TRUE | B32: =PAGO!R44*10% -> 0
A35: FALSE | B35: =PAGO!R44 -> 0
A36: FALSE | B36: =(PAGO!R44-PAGO!H55)/3 -> 0
A37: FALSE | B37: =(PAGO!R44-PAGO!H55)/9 -> 0

Sheet PROVINCIAS
A1: Provincia
A3: Álava (Vitoria)
A4: Albacete
A5: Alicante
A6: Almería
A7: Asturias (Oviedo)
A8: Ávila
A9: Badajoz
A10: Baleares (Palma de Mallorca)
A11: Barcelona
A12: Burgos
A13: Cáceres
A14: Cádiz
A15: Cantabria (Santander)
A16: Castellón
A17: Ceuta
A18: Ciudad Real
A19: Córdoba
A20: Coruña
A21: Cuenca
A22: Gerona
A23: Granada
A24: Guadalajara
A25: Guipúzcoa (San Sebastián)
A26: Huelva
A27: Huesca
A28: Jaén
A29: La Rioja (Logroño)
A30: Las Palmas
A31: León
A32: Lérida
A33: Lugo
A34: Madrid
A35: Málaga
A36: Melilla
A37: Murcia
A38: Navarra (Pamplona)
A39: Orense
A40: Palencia
A41: Pontevedra
A42: Salamanca
A43: Santa Cruz de Tenerife
A44: Segovia
A45: Sevilla
A46: Soria
A47: Tarragona
A48: Teruel
A49: Toledo
A50: Valencia
A51: Valladolid
A52: Vizcaya (Bilbao)
A53: Zamora
A54: Zaragoza

Sheet Hoja1
A1: Curso | B1: Módulo | C1: Horas | D1: matricula | E1: Precio | F1: Convalidar | G1: Precio Conval.
A2: 1 | B2: 0099 Disposición y venta de productos | C2: 99 | E2: =C2*2.4 -> 237.6
A3: 1 | B3: 0100 Oficina de farmacia | C3: 198 | E3: =C3*2.4 -> 475.2 | G3: 5
A4: 1 | B4: 0102 Dispensación de productos parafarmacéuticos | C4: 264 | E4: 633.6 | G4: 5
A5: 1 | B5: 0103 Operaciones básicas de laboratorio | C5: 198 | E5: 475.2 | G5: 5
A6: 1 | B6: 0106. Formación y orientación laboral | C6: 99 | E6: 237.6 | G6: 5
A7: 1 | B7: 0061 Anatomofisiología y patología básicas | C7: 132 | E7: 316.8 | G7: 5
A8: 2 | B8: 0101 Dispensación de productos farmacéuticos | C8: 210 | E8: 504 | G8: 5
A9: 2 | B9: 0104 Formulación magistral | C9: 147 | E9: 352.8 | G9: 5
A10: 2 | B10: 0105 Promoción de la salud | C10: 168 | E10: 403.2 | G10: 5
A11: 2 | B11: 0107. Empresa e iniciativa emprendedora | C11: 63 | E11: 151.2 | G11: 5
A12: 2 | B12: 0020 Primeros auxilios | C12: 42 | E12: 100.8 | G12: 5
A13: 2 | B13: 0108. Formación en centros de trabajo. | C13: 380 | E13: 912 | G13: 50
B14: Total Módulos:
B16: Total Horas:
B18: Precio total sin descuentos: | J18: =990*2.4 -> 2376
J19: =J18*10% -> 237.6 | N19: cuota
B20: Descuento 10% para nuevos alumnos | J20: =J18-J19 -> 2138.4 | K20: =J18*3% -> 71.28 | L20: =J20-K20 -> 2067.12 | M20: =L20+J19 -> 2304.72 | N20: =L20/9 -> 229.68
K21: =J18*4% -> 95.04 | L21: =J20-K21 -> 2043.36 | M21: =L21+J19 -> 2280.96 | N21: =L21/3 -> 681.12
B22: Descuento 3% (más de 600 horas)
B24: Si abonas tu matrícula en un sólo plazo (3% descuento sobre el total a pagar, si es superior a 500 Euros)
B26: Si abonas tu matrícula en 5 plazos (importe de cada plazo)
B29: 0337 Contexto de la intervención social
B30: 0338 Inserción sociolaboral
B31: 0339 Atención a las unidades de convivencia
B32: 0340 Mediación comunitaria
B33: 0341 Apoyo a la intervención educativa
B34: 0342 Promoción de la autonomía personal
B35: 0343 Sistemas alternativos de comunicación
B36: 0344 Metodología de la intervención social
B37: 0020 Primeros auxilios
B38: 0017 Habilidades sociales
B39: 0345 Proyecto de Integración Social
B40: 0346 Formación y orientación laboral
B41: 0347 Empresa e iniciativa emprendedora
B42: 0348 Formación en Centros de trabajo
